Workbook

Sheet RIMS Pricing Schedule
A1: SOUTH AFRICAN NATIONAL ROADS AGENCY SOC LTD
B2: CONTRACT: | C2: X.002-218-2024/1 & X.002-220-2024/1
A3: CONSULTING ENGINEERING SERVICES FOR THE OPERATIONS AND MAINTENANCE OF INCIDENT MANAGEMENT SYSTEMS IN THE GAUTENG PROVINCE
A5: C2.2 | B5: PRICING SCHEDULE (Incorporating SBD3)
A8: ITEM NO | B8: DESCRIPTION | C8: UNIT | D8: QUANTITY | E8: RATE | F8: AMOUNT
A10: 3200 | B10: ADMINISTRATION AND MONITORING OF THE PROJECT
A11: 32.01 | B11: Project Leader and Head Office
A12: (a) | B12: Duties of the Project leader | C12: Month | D12: 36 | F12: =D12*E12 -> 0
A13: (b) | B13: Head Office overhead costs | C13: Month | D13: 36 | F13: =D13*E13 -> 0
A14: (c) | B14: Occupational Health and Safety Obligations and requirements | C14: Month | D14: 36 | F14: 0
A15: (d) | B15: Reporting | C15: Month | D15: 36 | F15: 0
A17: 32.02 | B17: Establishment of supervisory personnel and regional RIMS office
A18: (a) | B18: Relocation cost of individual supervisory personnel: RIMS office
A19: i) | B19: RIMS Co-ordinator | C19: PC Sum | D19: R 40,000.00 | E19: 1 | F19: =D19 -> R 40,000.00
A20: ii) | B20: RIMS Administrator/ Data capturer | C20: PC Sum | D20: R 10,000.00 | E20: 1 | F20: =D20 -> R 10,000.00
A21: iii) | B21: Handling cost i.t.o. item 32.02(a)(i) & (ii) | C21: % | D21: =F20+F19 -> R 50,000.00 | F21: =D21*E21 -> 0
A23: (b) | B23: Establishment of dedicated RIMS Provincial office including office furniture and equipment | C23: Lump Sum | D23: 1 | F23: =D23*E23 -> 0
A25: 32.03 | B25: Provision of Monitoring personnel and RIMS office
A26: (a) | B26: RIMS Coordinator | C26: Prov. Sum | D26: R 4,000,000.00 | E26: 1 | F26: =D26 -> R 4,000,000.00
A27: (b) | B27: Handling cost i.t.o. item 32.03(a) | C27: % | D27: =F26 -> R 4,000,000.00 | F27: =D27*E27 -> 0
A28: (c) | B28: RIMS Administrator/ Data Capturer | C28: Prov. Sum | D28: R 2,000,000.00 | E28: 1 | F28: =D28 -> R 2,000,000.00
A29: (d) | B29: Handling cost i.t.o. item 32.03(c) | C29: % | D29: =F28 -> R 2,000,000.00 | F29: =D29*E29 -> 0
A30: (e) | B30: RIMS Coordinator Support/ (Assistance) | C30: Prov. Sum | D30: R 1,000,000.00 | E30: 1 | F30: =D30 -> R 1,000,000.00
A31: (f) | B31: Handling cost i.t.o. item 32.03(e) | C31: % | D31: =F30 -> R 1,000,000.00 | F31: =D31*E31 -> 0
A32: (g) | B32: Trainee | C32: Prov. Sum | D32: R 300,000.00 | E32: 1 | F32: =D32 -> R 300,000.00
A33: (h) | B33: Handling cost i.t.o. item 32.03 (g) | C33: % | D33: =F32 -> R 300,000.00 | F33: =D33*E33 -> 0
A34: (i) | B34: Accommodation | C34: Prov. Sum | D34: R 720,000.00 | E34: 1 | F34: =D34 -> R 720,000.00
A35: (j) | B35: Handling cost i.r.o item 32.03(i) | C35: % | D35: =F34 -> R 720,000.00 | F35: =D35*E35 -> 0
A36: (k) | B36: Provision and monthly cost of office equipment | C36: Month | D36: 36 | F36: =D36*E36 -> 0
A38: 32.04 | B38: Meetings
A39: (a) | B39: Steering Committee Meetings
A40: (i) | B40: City of Johannesburg Metropolitan based System | C40: number | D40: 12 | F40: =D40*E40 -> 0
A41: (ii) | B41: City of Tshwane Metropolitan based system | C41: number | D41: 12 | F41: =D41*E41 -> 0
A42: (iii) | B42: Sedibeng Municipality based System | C42: number | D42: 12 | F42: 0
A43: (iv) | B43: West Rand Municipality based System | C43: number | D43: 12 | F43: 0
A44: (v) | B44: Ekurhuleni Metropolitan Municipality based System | C44: number | D44: 12 | F44: 0
A45: (b) | B45: Working/ Task Group Meetings
A46: (i) | B46: City of Johannesburg Metropolitan based System | C46: number | D46: 12 | F46: =D46*E46 -> 0
A47: (ii) | B47: City of Tshwane Metropolitan based system | C47: number | D47: 12 | F47: =D47*E47 -> 0
A48: (iii) | B48: Sedibeng Municipality based System | C48: number | D48: 12 | F48: 0
A49: (iv) | B49: West Rand Municipality based System | C49: number | D49: 12 | F49: 0
A50: (v) | B50: Ekurhuleni Metropolitan Municipality based System | C50: number | D50: 12 | F50: 0
A51: (c) | B51: RIMS Meetings
A52: (i) | B52: Provincial Coordinating Advisory Committee (PCAC) | C52: number | D52: 12 | F52: =D52*E52 -> 0
A53: (ii) | B53: National Technical Committee (NTC) | C53: number | D53: 12 | F53: =D53*E53 -> 0
A54: (iii) | B54: Post Incident Assessment (PIA) | C54: number | D54: 24 | F54: =D54*E54 -> 0
A55: (iv) | B55: Simulations | C55: number | D55: 24 | F55: 0
A56: (d) | B56: SANRAL Project Meetings
A57: (i) | B57: Project Progress Meeting | C57: number | D57: 18 | F57: =D57*E57 -> 0
A58: (ii) | B58: Planning /Focus Group Meeting | C58: number | D58: 12 | F58: =D58*E58 -> 0
A61: 32.05 | B61: Reports
A62: (a) | B62: RIMS Provincial Report | C62: number | D62: 3 | F62: =D62*E62 -> 0
A63: (b) | B63: RIMS Guideline Plans
A64: (i) | B64: Preparation base document and mapping of alternate route in GIS per system (Digitization per RIMS system) | C64: number | D64: 1 | F64: =D64*E64 -> 0
A65: (ii) | B65: Annual update (per system) | C65: number | D65: 3 | F65: =D65*E65 -> 0
A68: 32.06 | B68: Training Sessions
A69: (a) | B69: 1 Day RIMS Workshop (non-accredited)
A70: (i) | B70: City of Johannesburg Metropolitan based System | C70: number | D70: 9 | F70: =D70*E70 -> 0
A71: (ii) | B71: City of Tshwane Metropolitan based system | C71: number | D71: 9 | F71: 0
A72: (iii) | B72: Sedibeng Municipality based System | C72: number | D72: 9 | F72: 0
A73: (iv) | B73: West Rand Municipality based System | C73: number | D73: 9 | F73: 0
A74: (v) | B74: Ekurhuleni Metropolitan Municipality based System | C74: number | D74: 9 | F74: 0
A75: (vii) | B75: Refreshments | C75: Prov. Sum | D75: R 100,000.00 | E75: 1 | F75: =D75 -> R 100,000.00
A76: (viii) | B76: Handling cost i.t.o. item 32.06 (a) (vii) | C76: % | D76: =F75 -> R 100,000.00 | F76: =D76*E76 -> 0
A77: (ix) | B77: Hiring of Venues | C77: Prov. Sum | D77: R 200,000.00 | E77: 1 | F77: =D77 -> R 200,000.00
A78: (x) | B78: Handling cost i.t.o. item 32.06 (a) (ix) | C78: % | D78: =F77 -> R 200,000.00 | F78: =D78*E78 -> 0
A79: (b) | B79: Formal Training (TETA Accredited)
A80: (i) | B80: Theoretical Training (2 + 1 Days)
A81: (a) | B81: City of Johannesburg Metropolitan based System | C81: number | D81: 6 | F81: =D81*E81 -> 0
A82: (b) | B82: City of Tshwane Metropolitan based system | C82: number | D82: 6 | F82: =D82*E82 -> 0
A83: (c) | B83: Sedibeng Municipality based System | C83: number | D83: 6 | F83: =D83*E83 -> 0
A84: (d) | B84: West Rand Municipality based System | C84: number | D84: 6 | F84: =D84*E84 -> 0
A85: (e) | B85: Ekurhuleni Metropolitan Municipality based System | C85: number | D85: 6 | F85: =D85*E85 -> 0
A86: (ii) | B86: Refreshments | C86: Prov. Sum | D86: R 200,000.00 | E86: 1 | F86: =D86 -> R 200,000.00
A87: (iii) | B87: Handling cost i.t.o. item 32.06 (b) (ii) | C87: % | D87: =F86 -> R 200,000.00 | F87: =D87*E87 -> 0
A88: (iv) | B88: Hiring of Venues | C88: Prov. Sum | D88: R 400,000.00 | E88: 1 | F88: =D88 -> R 400,000.00
A89: (v) | B89: Handling cost i.t.o. item 32.06 (b) (iv) | C89: % | D89: =F88 -> R 400,000.00 | F89: =D89*E89 -> 0
A90: (vi) | B90: Review & Assessment of Portfolio of Evidence (PoE) | C90: number | D90: 1000 | F90: 0
A91: (vii) | B91: Moderator Assessment & verification of PoE | C91: Prov. Sum | D91: R 200,000.00 | E91: 1 | F91: =D91 -> R 200,000.00
A92: (viii) | B92: Handling cost i.t.o. item 32.06 (b) (vii) | C92: % | D92: =F91 -> R 200,000.00 | F92: =D92*E92 -> 0
A94: 32.07 | B94: Transport for supervisory personnel
A95: (a) | B95: Travelling to perform duties | C95: Prov. Sum | D95: R 1,500,000.00 | E95: 1 | F95: =D95 -> R 1,500,000.00
A96: (b) | B96: Handling cost i.t.o. item 32.07(a) | C96: % | D96: =F95 -> R 1,500,000.00 | F96: =D96*E96 -> 0
A98: 3200 TOTAL CARRIED FORWARD TO SUMMARY PAGE | F98: =SUM(F12:F97) -> R 10,670,000.00
A100: 3300 | B100: ADDITIONAL DUTIES
A101: 33.01 | B101: Additional duties
A102: (a) | B102: Personnel - Category A | C102: hour | D102: 20 | F102: =D102*E102 -> 0
A103: (b) | B103: Personnel - Category B | C103: hour | D103: 40 | F103: 0
A104: (c) | B104: Personnel - Category C | C104: hour | D104: 160 | F104: 0
A105: (d) | B105: Personnel - Category D | C105: hour | D105: 180 | F105: 0
A107: 33.02 | B107: Additional Duties by Employer | C107: hour | E107: R -1,500.00 | F107: Rate Only
A109: 33.03 | B109: Prepare of GIS based Maps as ordered by the Employer
A110: (c) | B110: Personnel - Category C (GIS & CAD Specialist) | C110: hour | D110: 240 | F110: =D110*E110 -> 0
A111: (d) | B111: Personnel - Category D (GIS & CAD Operator) | C111: hour | D111: 600 | F111: 0
A113: 33.04 | B113: Project Continuity
A114: (a) | B114: Project continuity and transfer of RIMS operation by previous Serivce Provider | C114: Month | D114: 2 | E114: R 250,000.00 | F114: =D114*E114 -> R 500,000.00
A115: (b) | B115: Handling cost i.t.o. item 33.04(a) | C115: % | D115: =F114 -> R 500,000.00 | F115: =D115*E115 -> 0
A116: (c) | B116: Handover and transfer of RIMS operation to the subsequent Service Provider. | C116: Prov. Sum | D116: R 500,000.00 | E116: 1 | F116: =D116 -> R 500,000.00
A117: (d) | B117: Handling cost i.t.o. item 33.04(c) | C117: % | D117: =F116 -> R 500,000.00 | F117: =D117*E117 -> 0
A119: 3300 TOTAL CARRIED FORWARD TO SUMMARY PAGE | F119: =SUM(F102:F118) -> R 1,000,000.00
A121: 3400 | B121: DISBURSEMENTS (where not covered by other items)
A122: 34.01 | B122: Disbursements
A123: (a) | B123: Disbursements | C123: Prov. Sum | D123: R 750,000.00 | E123: 1 | F123: =D123 -> R 750,000.00
A124: (b) | B124: Handling cost i.t.o. item 34.01(a) | C124: % | D124: =F123 -> R 750,000.00 | F124: =D124*E124 -> 0
A125: 3400 TOTAL CARRIED FORWARD TO SUMMARY PAGE | F125: =SUM(F123:F124) -> R 750,000.00
A127: 3500 | B127: ROAD SAFETY AUDITS (APPRAISALS)
A128: 35.01 | B128: Project leader/Design Specialist and Head Office
A129: (a) | B129: Duties of the Project leader/Design Specialist | C129: Month | D129: 36 | F129: =D129*E129 -> 0
A130: (b) | B130: Head Office overhead costs | C130: Month | D130: 36 | F130: =D130*E130 -> 0
A131: 35.02 | B131: Meetings and Site Inspections
A132: (a) | B132: SANRAL project progress meetings | C132: number | D132: 12 | F132: =D132*E132 -> 0
A133: (b) | B133: Task group meetings | C133: number | D133: 12 | F133: 0
A134: (c) | B134: RIMS Provincial Coordinating Advisory Committee (On instruction of the employer) | C134: number | D134: 12 | F134: 0
A135: (d) | B135: Site Inspections
A136: (i) | B136: City of Johannesburg Metropolitan based System | C136: number | D136: 12 | F136: =D136*E136 -> 0
A137: (ii) | B137: City of Tshwane Metropolitan based system | C137: number | D137: 12 | F137: =D137*E137 -> 0
A138: (iii) | B138: Sedibeng Municipality based System | C138: number | D138: 12 | F138: 0
A139: (iv) | B139: West Rand Municipality based System | C139: number | D139: 12 | F139: 0
A140: (v) | B140: Ekurhuleni Metropolitan Municipality based System | C140: number | D140: 12 | F140: 0
A141: 35.03 | B141: Hazardous Location Database and Report
A142: (a) | B142: Prepare, continuously update and maintain Provincial Hazardous Location Database Register | C142: Month | D142: 36 | F142: =D142*E142 -> 0
A143: (b) | B143: Provincial Hazardous Location analysis and prepare Report (Bi-annual ) | C143: number | D143: 6 | F143: =D143*E143 -> 0
A144: (c) | B144: Preparation of Provincial Hazardous Location Map
A145: (i) | B145: Preparation of base document | C145: Lump Sum | D145: 1 | F145: =D145*E145 -> 0
A146: (ii) | B146: Bi-Annual update and revision | C146: number | D146: 6 | F146: =D146*E146 -> 0
A147: (d) | B147: Review Major Crash Investigation Report issued by relevant authority (on instruction of the Employer) | C147: number | D147: 12 | F147: 0
A148: 35.04 | B148: Road Safety Audit (Appraisal)
A149: (a) | B149: Procurement of Targeted Enterprises for the Road Safety Audits (Appraisals) sub-services | C149: number (of Tender process) | D149: 3 | F149: =D149*E149 -> 0
A150: (b) | B150: Management, Monitoring, Guidance, Mentoring and Review of Road Safety Audits (Appraisals) undertaken by Targeted Enterprise | C150: number (of Audits) | D150: 18 | F150: =D150*E150 -> 0
A151: (c) | B151: Road Safety Appraisals undertaken by Targeted Enterprise (TE) | C151: Prov. Sum | D151: R 5,000,000.00 | E151: 1 | F151: =D151 -> R 5,000,000.00
A152: (d) | B152: Handling cost i.t.o. item 35.04(c) | C152: % | D152: =F151 -> R 5,000,000.00 | F152: =D152*E152 -> 0
A153: (e) | B153: Road Safety Audit Summary Report | C153: number | D153: 3 | F153: 0
A154: 3500 TOTAL CARRIED FORWARD TO SUMMARY PAGE | F154: =SUM(F129:F153) -> R 5,000,000.00
A156: 3600 | B156: ADDITIONAL DUTIES
A157: 36.01 | B157: Additional Duties
A158: (a) | B158: Personnel - Category A | C158: hour | D158: 0 | F158: =D158*E158 -> 0
A159: (b) | B159: Personnel - Category B | C159: hour | D159: 80 | F159: =D159*E159 -> 0
A160: (c) | B160: Personnel - Category C (DS RS) | C160: hour | D160: 320 | F160: =D160*E160 -> 0
A161: (d) | B161: Personnel - Category D | C161: hour | D161: 480 | F161: =D161*E161 -> 0
A162: 36.02 | B162: Transport to perform additional duties
A163: (a) | B163: Travelling to perform additional duties | C163: Prov. Sum | D163: R 150,000.00 | E163: 1 | F163: =D163 -> R 150,000.00
A164: (b) | B164: Handling cost i.t.o. item 36.02(a) | C164: % | D164: =F163 -> R 150,000.00 | F164: =D164*E164 -> 0
A165: 36.03 | B165: Specialist Services and specialist advice
A166: (a) | B166: Specialist services or advice provided by or procured by service provider | C166: Prov. Sum | D166: R 600,000.00 | E166: 1 | F166: =D166 -> R 600,000.00
A167: (b) | B167: Handling cost i.t.o. item 36.03(a) | C167: % | D167: =F166 -> R 600,000.00 | F167: =D167*E167 -> 0
A168: 3600 TOTAL CARRIED FORWARD TO SUMMARY PAGE | F168: =SUM(F158:F167) -> R 750,000.00
A170: 3700 | B170: DISBURSEMENTS (where not covered by other items)
A171: 37.01 | B171: Additional Duties
A172: (a) | B172: Disbursements | C172: Prov. Sum | D172: R 100,000.00 | E172: 1 | F172: =D172 -> R 100,000.00
A173: (b) | B173: Handling cost i.t.o. item 37.01(a) | C173: % | D173: =F172 -> R 100,000.00 | F173: =D173*E173 -> 0
A174: 3700 TOTAL CARRIED FORWARD TO SUMMARY PAGE | F174: =SUM(F172:F173) -> R 100,000.00
A178: C2.3 | B178: SUMMARY OF PRICING SCHEDULE
A180: =A10 -> 3200 | B180: =B10 -> ADMINISTRATION AND MONITORING OF THE PROJECT | F180: =F98 -> R 10,670,000.00
A181: =A100 -> 3300 | B181: =B100 -> ADDITIONAL DUTIES | F181: =F119 -> R 1,000,000.00
A182: =A121 -> 3400 | B182: =B121 -> DISBURSEMENTS (where not covered by other items) | F182: =F125 -> R 750,000.00
B183: SUB-TOTAL (A) | F183: =SUM(F180:F182) -> R 12,420,000.00
A184: =A127 -> 3500 | B184: =B127 -> ROAD SAFETY AUDITS (APPRAISALS) | F184: =F154 -> R 5,000,000.00
A185: =A156 -> 3600 | B185: =B156 -> ADDITIONAL DUTIES | F185: =F168 -> R 750,000.00
A186: =A170 -> 3700 | B186: =B170 -> DISBURSEMENTS (where not covered by other items) | F186: =F174 -> R 100,000.00
B187: SUB-TOTAL (B) | F187: =SUM(F184:F186) -> R 5,850,000.00
B189: SUB TOTAL (C): ADD SUB TOTAL (A) AND (B) ABOVE | F189: =F187+F183 -> R 18,270,000.00
B191: VAT (15%) ON SUB TOTAL (C) | F191: =ROUND((F189*0.15),2) -> R 2,740,500.00
B193: TENDER SUM CARRIED FORWARD TO FORM OF OFFER (C1.1.1) | F193: =F189+F191 -> R 21,010,500.00
A196: SIGNED BY TENDERER: ………………………………………….................................………………….
